{"text_format":"1","workbook":"xlsx","n_sheets":5,"sheets":["Generales","Principal","Personal","Normal","Recibo"],"not_rendered":{"charts":0,"images":0,"macros":0,"external_links":0,"defined_names":45,"comments":1,"pivot_tables":0},"unopened":[],"bounds":{"document_bytes":16777216,"sheet_cells":100000,"rows_first":2000,"rows_last":500,"rows_between":2000,"halvings":0,"cell_chars":16384,"cell_head_chars":4096},"cells_cut":0,"cells_raw":0,"read":"whole","date_system":"1900"}

{"sheet":"Generales","index":0,"n_rows":291,"n_cols":33,"rows_kept":291,"cut":false,"hidden":false,"merged":[[1,0,1,2]]}
[]
["Días de Vacaciones",null,null,null,"Categorías","Basicos","Ac 04/15",null,null,"Feriados",null,"Movilidad",null,"Seg Merc",null,"Tope","Normal",null,"Cargo","L Pagp",null,null,"Código","Situación",null,"Código","Condición",null,"Código","Modalidades",null,"Código","Obras Sociales"]
[null,"Antigüedad","Días",null,"Maestranza A",9907.9699999999993,null,null,null,"2015-01-01",null,270,null,406.25,null,"Max Aporte y LRT",43202.17,null,"Planilleros","Río Cuarto",null,null,0,"Baja por fallecimiento",null,1,"Servicios Comunes. Mayor de 18 años",null,0,"Contrato modalidad promovida .Reducción 0%",null,0,"Sin Obra Social"]
[">",0,14,null,"Maestranza B",9945.49,null,null,null,"2015-02-16",null,null,null,null,null,"Min Aporte y LRT",1329.31,null,"Recepcionista",null,null,null,1,"Activo",null,2,"Jubilado",null,1,"A tiempo parcial: Indeterminado o determinado",null,208,"o.s.del personal de la industria grafica de la provincia de cordoba"]
[">",5.01,21,null,"Maestranza C",10076.91,null,null,null,"2015-02-17",null,"Períodos",null,"Smvm",null,null,null,null,"Control Documetación",null,null,null,2,"Bajas otras causales",null,3,"Menor",null,2,"Becarios",null,307,"o.s.portuarios argentinos de mar del plata"]
[">",10.01,28,null,"Administrativo A",10048.76,null,null,null,"2015-03-23",null,"2015-01-01",null,5558,null,null,null,null,null,null,null,null,3,"Activo Decreto N° 796/97",null,4,"Menor anterior",null,3,"De aprendizaje. Ley N° 25.013",null,406,"o.s.del personal de organismos de control externo"]
[">",20.010000000000002,35,null,"Administrativo B",10105.07,null,null,null,"2015-03-24",null,"2015-02-01",null,null,null,null,null,null,null,null,null,null,4,"Baja otras causales Decreto N° 796/97",null,5,"Servicios Diferenciados Mayor de 18 años",null,4,"Especial de Fomento del Empleo. Ley N° 24.465",null,505,"o.s.de capitanes,pilotos y patrones de pesca"]
[null,null,null,null,"Administrativo C",10161.299999999999,null,null,null,"2015-04-02",null,"2015-03-01",null,"Div Hs Extras",null,null,null,null,null,null,null,null,5,"Maternidad y/o excedencia - En goce de vacaciones y otros.",null,6,"Sin Servicios Reales",null,5,"Fomento del empleo. Leyes N° 24.013 y N° 24.467",null,604,"o.s.de agentes de loterias y afines de la republica argentina"]
[null,null,null,null,"Administrativo D",10330.280000000001,null,null,null,"2015-04-03",null,"2015-04-01",null,200,null,null,null,null,null,null,null,null,6,"Suspendido/Conservación del empleo – Licencia s/goce de sueldo y otros.",null,7,"Medida de no innovar. Servicios Comunes",null,6,"Lanzamiento nueva actividad. Leyes N° 24.013 y N° 24.467",null,703,"mutual del personal de agua y energia de mendoza"]
[null,null,null,null,"Administrativo E",10471.07,null,null,null,"2015-05-01",null,"2015-05-01",null,null,null,null,null,null,null,null,null,null,7,"Baja por despido",null,8,"Medida de no innovar. Servicios Diferenciados",null,7,"Período de prueba. Leyes N° 24.465 y N° 25.013",null,901,"o.s.de la actividad de seguros,reaseguros,capitalizacion y ahorro y prestamo para la vivienda"]
[null,null,null,null,"Administrativo F",10677.54,null,null,null,"2015-05-25",null,"2015-06-01",null,"Remunerativo",null,null,null,null,null,null,null,null,8,"Baja por despido Decreto N° 796/97",null,9,"Jubilado Decreto. N° 206/00.",null,8,"Por tiempo indeterminado – tiempo determinado",null,1003,"o.s.del personal de obras y servicios sanitarios"]
[null,null,null,null,"Cajero A",10095.65,null,null,null,"2015-06-20",null,"2015-07-01",null,null,null,null,null,null,null,null,null,null,9,"Suspendido. Ley N° 20.744 art. 223bis",null,null,null,null,9,"Práctica laboral para jóvenes.",null,1102,"o.s.para la actividad docente"]
[null,null,null,null,"Cajero B",10161.299999999999,null,null,null,"2015-07-09",null,"2015-08-01",null,null,null,null,null,null,null,null,null,null,null,null,null,"Código","Régimen Jubilatorio",null,10,"Programa Nacional de pasantías. Decreto N° 340/92",null,1201,"o.s.para el personal del ministerio de economia y obras publicas"]
[null,null,null,null,"Cajero C",10245.82,null,null,null,"2015-08-17",null,"2015-09-01",null,"Exento",null,null,null,null,null,null,null,null,null,null,null,1,"SIPA",null,11,"Trabajo de temporada.",null,1300,"o.s.ferroviaria"]
[null,null,null,null,"Auxiliar A",10095.66,null,null,null,"2015-10-12",null,"2015-10-01",null,null,null,null,null,null,null,null,null,null,null,null,null,null,null,null,12,"Trabajo eventual.",null,1508,"os. asociacion civil pro sindicato amas de casa de la republica argentina"]
[null,null,null,null,"Auxiliar B",10189.52,null,null,null,"2015-11-23",null,"2015-11-01",null,null,null,null,null,null,null,null,null,null,null,null,null,"Código","CCT",null,13,"Trabajo formación.",null,1607,"o.s.del sindicato unido de trabajadores de la industria de aguas gaseosas de la provincia de santa fe"]
[null,null,null,null,"Auxiliar C",10499.22,null,null,null,"2015-12-07",null,"2015-12-01",null,"Seg Vida",null,null,null,null,null,null,null,null,null,null,null,1,"130/75",null,14,"Nuevo período de prueba",null,1706,"o.s.del personal jerarquico de la republica argentina para el personal jerarquico de la industria grafica  y el personal jerarquico de agua y energia"]
[null,null,null,null,"Auxiliar Esp A",10208.290000000001,null,null,null,"2015-12-08",null,null,null,4.0999999999999996,null,null,null,null,null,null,null,null,null,null,null,null,null,null,15,"Puesto Nuevo varones 25 a 44 y mujeres de 25 ó más años",null,1805,"obra social de legisladores de la republica argentina"]
[null,null,null,null,"Auxiliar Esp B",10377.209999999999,null,null,null,"2015-12-25",null,null,null,null,null,null,null,null,null,null,null,null,null,null,null,null,null,null,16,"Nuevo período de prueba. Trabajador Discapacitado. Art. 34. Ley N° 24.147",null,1904,"o.s.de la federacion de camaras y centros comerciales zonales de la republica argentina"]
[null,null,null,null,"Vendedor A",10095.65,null,null,null,null,null,null,null,"Tipos",null,null,null,null,null,null,null,null,null,null,null,null,null,null,17,"Puesto nuevo menor de 25, varón de 45 ó más y mujer jefe de familia s/límite/edad",null,2105,"o.s. profesionales del turf de la republica argentina"]
[null,null,null,null,"Vendedor B",10377.209999999999,null,null,null,null,null,null,null,"Remunerativo",null,null,null,null,null,null,null,null,null,null,null,null,null,null,18,"Trabajador Discapacitado. Art. 34. Ley N° 24.147",null,2204,"os. empleados y personal jerarquico del neumatico argentino de neumaticos good year s.r.l."]
[null,null,null,null,"Vendedor C",10471.07,null,null,null,null,null,null,null,"Exento",null,null,null,null,null,null,null,null,null,null,null,null,null,null,19,"Puesto nuevo varones 25 a 44 y mujeres de 25 ó más años. Art. 34. Ley N° 24.147",null,2303,"o.s. para el personal de empresas de limpieza, servicios y maestranza de mendoza"]
[null,null,null,null,"Vendedor D",10677.54,null,null,null,null,null,null,null,"Salario Familiar",null,null,null,null,null,null,null,null,null,null,null,null,null,null,20,"Puesto nuevo menor de 25. Varón de 45 ó más y mujer jefe de familia s/límite/edad. Art. 34. Ley N° 24.147",null,2402,"o.s. del personal jerarquico del transporte automotor de pasajeros de cordoba y afines"]
[null,null,null,null,null,null,null,null,null,null,null,null,null,"Retención",null,null,null,null,null,null,null,null,null,null,null,null,null,null,50,"Contrato modalidad promovida. Reducción 50%",null,2501,"o.s.de ministros, secretarios y subsecretarios"]
[null,null,null,null,null,null,null,null,null,null,null,null,null,"Contr.Patronal",null,null,null,null,null,null,null,null,null,null,null,null,null,null,100,"Contrato modalidad promovida. Reducción 100%",null,2600,"o.s. de la trabajadores de la carne y afines de la r.a."]
[null,null,null,null,null,null,null,null,null,null,null,null,null,null,null,null,null,null,null,null,null,null,null,null,null,null,null,null,null,null,null,2709,"os de los trabajadores asociados a la asociacion mutual mercantil argentina (ostamma)"]
[null,null,null,null,null,null,null,null,null,null,null,null,null,null,null,null,null,null,null,null,null,null,null,null,null,null,null,null,null,null,null,2808,"os de la camara de empresarios de agencias de remises de la provincia de buenos aires (o.s.c.e.a.r.b.a)"]
[null,null,null,null,null,null,null,null,null,null,null,null,null,null,null,null,null,null,null,null,null,null,null,null,null,null,null,null,null,null,null,2907,"o. s. asociacion mutual metalurgica villa constitucion (o.s.a.m.m.v.c)"]
[null,null,null,null,null,null,null,null,null,null,null,null,null,null,null,null,null,null,null,null,null,null,null,null,null,null,null,null,null,null,null,3009,"o.s.personal asociado a asoc.mutual sancor (o.s.pers.a.a.m.s)"]
[null,null,null,null,null,null,null,null,null,null,null,null,null,null,null,null,null,null,null,null,null,null,null,null,null,null,null,null,null,null,null,100106,"o.s.para el personal de la industria aceitera y afines"]
[null,null,null,null,null,null,null,null,null,null,null,null,null,null,null,null,null,null,null,null,null,null,null,null,null,null,null,null,null,null,null,100205,"o.s.de  actores"]
[null,null,null,null,null,null,null,null,null,null,null,null,null,null,null,null,null,null,null,null,null,null,null,null,null,null,null,null,null,null,null,100304,"o.s.de  tecnicos de vuelo de lineas aereas"]
[null,null,null,null,null,null,null,null,null,null,null,null,null,null,null,null,null,null,null,null,null,null,null,null,null,null,null,null,null,null,null,100403,"o.s.del personal superior y profesional de empresas aerocomerciales"]
[null,null,null,null,null,null,null,null,null,null,null,null,null,null,null,null,null,null,null,null,null,null,null,null,null,null,null,null,null,null,null,100502,"o.s.del personal aeronautico"]
[null,null,null,null,null,null,null,null,null,null,null,null,null,null,null,null,null,null,null,null,null,null,null,null,null,null,null,null,null,null,null,100601,"o.s.del personal aeronavegacion de entes privados"]
[null,null,null,null,null,null,null,null,null,null,null,null,null,null,null,null,null,null,null,null,null,null,null,null,null,null,null,null,null,null,null,100700,"o.s.del personal tecnico aeronautico"]
[null,null,null,null,null,null,null,null,null,null,null,null,null,null,null,null,null,null,null,null,null,null,null,null,null,null,null,null,null,null,null,100809,"o.s.de  aeronavegantes"]
[null,null,null,null,null,null,null,null,null,null,null,null,null,null,null,null,null,null,null,null,null,null,null,null,null,null,null,null,null,null,null,100908,"o.s.de empleados de agencias de informes"]
[null,null,null,null,null,null,null,null,null,null,null,null,null,null,null,null,null,null,null,null,null,null,null,null,null,null,null,null,null,null,null,101000,"o.s.del personal de aguas gaseosas y afines"]
[null,null,null,null,null,null,null,null,null,null,null,null,null,null,null,null,null,null,null,null,null,null,null,null,null,null,null,null,null,null,null,101109,"o.s.de alfajoreros,reposteros,pizzeros y heladeros (mar del plata y aledaños"]
[null,null,null,null,null,null,null,null,null,null,null,null,null,null,null,null,null,null,null,null,null,null,null,null,null,null,null,null,null,null,null,101208,"o.s.del personal de la industria de la alimentacion"]
[null,null,null,null,null,null,null,null,null,null,null,null,null,null,null,null,null,null,null,null,null,null,null,null,null,null,null,null,null,null,null,101604,"o.s.del personal del automovil club argentino"]
[null,null,null,null,null,null,null,null,null,null,null,null,null,null,null,null,null,null,null,null,null,null,null,null,null,null,null,null,null,null,null,101802,"o.s.del personal de azucar del ingenio la esperanza"]
[null,null,null,null,null,null,null,null,null,null,null,null,null,null,null,null,null,null,null,null,null,null,null,null,null,null,null,null,null,null,null,101901,"o.s.del personal de azucar del ingenio ledesma"]
[null,null,null,null,null,null,null,null,null,null,null,null,null,null,null,null,null,null,null,null,null,null,null,null,null,null,null,null,null,null,null,102102,"o.s.del personal de azucar del ingenio rio grande"]
[null,null,null,null,null,null,null,null,null,null,null,null,null,null,null,null,null,null,null,null,null,null,null,null,null,null,null,null,null,null,null,102300,"o.s.del personal de azucar del ingenio san martin"]
[null,null,null,null,null,null,null,null,null,null,null,null,null,null,null,null,null,null,null,null,null,null,null,null,null,null,null,null,null,null,null,102706,"o.s.del personal de la industria azucarera"]
[null,null,null,null,null,null,null,null,null,null,null,null,null,null,null,null,null,null,null,null,null,null,null,null,null,null,null,null,null,null,null,102904,"o.s.del personal de barracas de lanas,cueros y anexos"]
[null,null,null,null,null,null,null,null,null,null,null,null,null,null,null,null,null,null,null,null,null,null,null,null,null,null,null,null,null,null,null,103006,"o.s.del personal de la industria botonera"]
[null,null,null,null,null,null,null,null,null,null,null,null,null,null,null,null,null,null,null,null,null,null,null,null,null,null,null,null,null,null,null,103105,"o.s.del personal de la industria del calzado"]
[null,null,null,null,null,null,null,null,null,null,null,null,null,null,null,null,null,null,null,null,null,null,null,null,null,null,null,null,null,null,null,103204,"o.s.de conductores camioneros y personal del transporte automotor de cargas"]
[null,null,null,null,null,null,null,null,null,null,null,null,null,null,null,null,null,null,null,null,null,null,null,null,null,null,null,null,null,null,null,103402,"o.s.del personal de carga y descarga"]
[null,null,null,null,null,null,null,null,null,null,null,null,null,null,null,null,null,null,null,null,null,null,null,null,null,null,null,null,null,null,null,103600,"o.s.del personal auxiliar de casas particulares"]
[null,null,null,null,null,null,null,null,null,null,null,null,null,null,null,null,null,null,null,null,null,null,null,null,null,null,null,null,null,null,null,103709,"o.s.del personal de la industria del caucho"]
[null,null,null,null,null,null,null,null,null,null,null,null,null,null,null,null,null,null,null,null,null,null,null,null,null,null,null,null,null,null,null,103808,"o.s.del personal del caucho"]
[null,null,null,null,null,null,null,null,null,null,null,null,null,null,null,null,null,null,null,null,null,null,null,null,null,null,null,null,null,null,null,103907,"o.s.del personal de la industria del caucho de santa fe"]
[null,null,null,null,null,null,null,null,null,null,null,null,null,null,null,null,null,null,null,null,null,null,null,null,null,null,null,null,null,null,null,104009,"o.s.del personal de cementerios de la republica argentina"]
[null,null,null,null,null,null,null,null,null,null,null,null,null,null,null,null,null,null,null,null,null,null,null,null,null,null,null,null,null,null,null,104108,"o.s.de ceramistas"]
[null,null,null,null,null,null,null,null,null,null,null,null,null,null,null,null,null,null,null,null,null,null,null,null,null,null,null,null,null,null,null,104207,"o.s.del personal de la ceramica,sanitarios,porcelanas de mesa y afines"]
[null,null,null,null,null,null,null,null,null,null,null,null,null,null,null,null,null,null,null,null,null,null,null,null,null,null,null,null,null,null,null,104306,"o.s.del personal de la actividad cervecera y afines"]
[null,null,null,null,null,null,null,null,null,null,null,null,null,null,null,null,null,null,null,null,null,null,null,null,null,null,null,null,null,null,null,104405,"o.s.del personal cinematografico de mar del plata"]
[null,null,null,null,null,null,null,null,null,null,null,null,null,null,null,null,null,null,null,null,null,null,null,null,null,null,null,null,null,null,null,104504,"o.s.del personal de la industria cinematografica"]
[null,null,null,null,null,null,null,null,null,null,null,null,null,null,null,null,null,null,null,null,null,null,null,null,null,null,null,null,null,null,null,104603,"o.s.de operadores cinematograficos"]
[null,null,null,null,null,null,null,null,null,null,null,null,null,null,null,null,null,null,null,null,null,null,null,null,null,null,null,null,null,null,null,104801,"o.s.de colocadores de azulejos,mosaicos,graniteros,lustradores y porcelaneros"]
[null,null,null,null,null,null,null,null,null,null,null,null,null,null,null,null,null,null,null,null,null,null,null,null,null,null,null,null,null,null,null,105002,"o.s.de conductores navales (conductores fusionados)"]
[null,null,null,null,null,null,null,null,null,null,null,null,null,null,null,null,null,null,null,null,null,null,null,null,null,null,null,null,null,null,null,105309,"o.s.del personal administrativo y tecnico de la construccion y afines"]
[null,null,null,null,null,null,null,null,null,null,null,null,null,null,null,null,null,null,null,null,null,null,null,null,null,null,null,null,null,null,null,105408,"o.s.del personal de la construccion"]
[null,null,null,null,null,null,null,null,null,null,null,null,null,null,null,null,null,null,null,null,null,null,null,null,null,null,null,null,null,null,null,105507,"o.s.de los cortadores de la indumentaria"]
[null,null,null,null,null,null,null,null,null,null,null,null,null,null,null,null,null,null,null,null,null,null,null,null,null,null,null,null,null,null,null,105606,"o.s.del personal de la industria del cuero y afines"]
[null,null,null,null,null,null,null,null,null,null,null,null,null,null,null,null,null,null,null,null,null,null,null,null,null,null,null,null,null,null,null,105705,"o.s.del personal de la industria del chacinado y afines"]
[null,null,null,null,null,null,null,null,null,null,null,null,null,null,null,null,null,null,null,null,null,null,null,null,null,null,null,null,null,null,null,105804,"o.s.de choferes de camiones"]
[null,null,null,null,null,null,null,null,null,null,null,null,null,null,null,null,null,null,null,null,null,null,null,null,null,null,null,null,null,null,null,106005,"o.s.del personal de  entidades deportivas y civiles"]
[null,null,null,null,null,null,null,null,null,null,null,null,null,null,null,null,null,null,null,null,null,null,null,null,null,null,null,null,null,null,null,106104,"o.s.empleados de despachantes de aduana"]
[null,null,null,null,null,null,null,null,null,null,null,null,null,null,null,null,null,null,null,null,null,null,null,null,null,null,null,null,null,null,null,106203,"o.s.del personal de distribuidoras cinematograficas"]
[null,null,null,null,null,null,null,null,null,null,null,null,null,null,null,null,null,null,null,null,null,null,null,null,null,null,null,null,null,null,null,106302,"o.s.de docentes particulares"]
[null,null,null,null,null,null,null,null,null,null,null,null,null,null,null,null,null,null,null,null,null,null,null,null,null,null,null,null,null,null,null,106401,"o.s.del personal de edifcios de renta y horizontal de la republica argentina"]
[null,null,null,null,null,null,null,null,null,null,null,null,null,null,null,null,null,null,null,null,null,null,null,null,null,null,null,null,null,null,null,106500,"o.s.del personal de edificios de rentas y horizontal de capital federal y gran buenos aries"]
[null,null,null,null,null,null,null,null,null,null,null,null,null,null,null,null,null,null,null,null,null,null,null,null,null,null,null,null,null,null,null,106609,"o.s.electricistas navales"]
[null,null,null,null,null,null,null,null,null,null,null,null,null,null,null,null,null,null,null,null,null,null,null,null,null,null,null,null,null,null,null,106708,"o.s.de obreros empacadores de fruta de rio negro y neuquen"]
[null,null,null,null,null,null,null,null,null,null,null,null,null,null,null,null,null,null,null,null,null,null,null,null,null,null,null,null,null,null,null,106807,"o.s.del personal de la enseñanza privada"]
[null,null,null,null,null,null,null,null,null,null,null,null,null,null,null,null,null,null,null,null,null,null,null,null,null,null,null,null,null,null,null,106906,"o.s.del personal de escribanias de la provincia de buenos aires"]
[null,null,null,null,null,null,null,null,null,null,null,null,null,null,null,null,null,null,null,null,null,null,null,null,null,null,null,null,null,null,null,107008,"o.s.del personal de escribanos"]
[null,null,null,null,null,null,null,null,null,null,null,null,null,null,null,null,null,null,null,null,null,null,null,null,null,null,null,null,null,null,null,107107,"o.s.del personal del espectaculo publico"]
[null,null,null,null,null,null,null,null,null,null,null,null,null,null,null,null,null,null,null,null,null,null,null,null,null,null,null,null,null,null,null,107206,"o.s.del personal de estaciones de servicio y gnc,garages,playas de estacionamiento y lavaderos automaticos"]
[null,null,null,null,null,null,null,null,null,null,null,null,null,null,null,null,null,null,null,null,null,null,null,null,null,null,null,null,null,null,null,107404,"o.s.del personal de farmacia"]
[null,null,null,null,null,null,null,null,null,null,null,null,null,null,null,null,null,null,null,null,null,null,null,null,null,null,null,null,null,null,null,107800,"o.s.del personal de la industria del fibrocemento"]
[null,null,null,null,null,null,null,null,null,null,null,null,null,null,null,null,null,null,null,null,null,null,null,null,null,null,null,null,null,null,null,107909,"o.s.del personal de la industria fideera"]
[null,null,null,null,null,null,null,null,null,null,null,null,null,null,null,null,null,null,null,null,null,null,null,null,null,null,null,null,null,null,null,108001,"o.s.del personal de la industria forestal de santiago del estero"]
[null,null,null,null,null,null,null,null,null,null,null,null,null,null,null,null,null,null,null,null,null,null,null,null,null,null,null,null,null,null,null,108100,"o.s.del personal de la industria del fosforo"]
[null,null,null,null,null,null,null,null,null,null,null,null,null,null,null,null,null,null,null,null,null,null,null,null,null,null,null,null,null,null,null,108209,"o.s.de fotografos"]
[null,null,null,null,null,null,null,null,null,null,null,null,null,null,null,null,null,null,null,null,null,null,null,null,null,null,null,null,null,null,null,108407,"o.s.del personal de la actividad  fructicola"]
[null,null,null,null,null,null,null,null,null,null,null,null,null,null,null,null,null,null,null,null,null,null,null,null,null,null,null,null,null,null,null,108506,"o.s.del personal de manipuleo,empaque y expedicion de fruta fresca y hortalizas de cuyo"]
[null,null,null,null,null,null,null,null,null,null,null,null,null,null,null,null,null,null,null,null,null,null,null,null,null,null,null,null,null,null,null,108605,"o.s.de futbolistas"]
[null,null,null,null,null,null,null,null,null,null,null,null,null,null,null,null,null,null,null,null,null,null,null,null,null,null,null,null,null,null,null,108704,"o.s.de tecnicos de futbol"]
[null,null,null,null,null,null,null,null,null,null,null,null,null,null,null,null,null,null,null,null,null,null,null,null,null,null,null,null,null,null,null,108803,"os del personal del turismo, hotelero y gastronomico de la union de trabajadores del turismo, hoteleros y gastronomicos de la ra (osuthgra)"]
[null,null,null,null,null,null,null,null,null,null,null,null,null,null,null,null,null,null,null,null,null,null,null,null,null,null,null,null,null,null,null,109004,"o.s.del personal grafico"]
[null,null,null,null,null,null,null,null,null,null,null,null,null,null,null,null,null,null,null,null,null,null,null,null,null,null,null,null,null,null,null,109202,"o.s.de guincheros y maquinistas de gruas moviles"]
[null,null,null,null,null,null,null,null,null,null,null,null,null,null,null,null,null,null,null,null,null,null,null,null,null,null,null,null,null,null,null,109301,"o.s.del personal de consignatarios del mercado nacional de hacienda de liniers"]
[null,null,null,null,null,null,null,null,null,null,null,null,null,null,null,null,null,null,null,null,null,null,null,null,null,null,null,null,null,null,null,109400,"o.s.del personal de la industria del hielo y mercados particulares"]
[null,null,null,null,null,null,null,null,null,null,null,null,null,null,null,null,null,null,null,null,null,null,null,null,null,null,null,null,null,null,null,109509,"o.s.del personal de los hipodromos de buenos aires y san isidro"]
[null,null,null,null,null,null,null,null,null,null,null,null,null,null,null,null,null,null,null,null,null,null,null,null,null,null,null,null,null,null,null,109608,"o.s.y sindicato del personal mensualizado del jockey club de buenos aires y los hipodromos de palermo y san isidro"]
[null,null,null,null,null,null,null,null,null,null,null,null,null,null,null,null,null,null,null,null,null,null,null,null,null,null,null,null,null,null,null,109707,"o.s.del personal de imprenta, diarios y afines"]
[null,null,null,null,null,null,null,null,null,null,null,null,null,null,null,null,null,null,null,null,null,null,null,null,null,null,null,null,null,null,null,110008,"o.s.del personal de jaboneros"]
[null,null,null,null,null,null,null,null,null,null,null,null,null,null,null,null,null,null,null,null,null,null,null,null,null,null,null,null,null,null,null,110107,"o.s.de jardineros,parquistas,viveristas y floricultores"]
[null,null,null,null,null,null,null,null,null,null,null,null,null,null,null,null,null,null,null,null,null,null,null,null,null,null,null,null,null,null,null,110206,"o.s.del personal del jockey club de rosario"]
[null,null,null,null,null,null,null,null,null,null,null,null,null,null,null,null,null,null,null,null,null,null,null,null,null,null,null,null,null,null,null,110305,"o.s.del personal ladrillero"]
[null,null,null,null,null,null,null,null,null,null,null,null,null,null,null,null,null,null,null,null,null,null,null,null,null,null,null,null,null,null,null,110404,"o.s.del personal de la industria ladrillera a maquina"]
[null,null,null,null,null,null,null,null,null,null,null,null,null,null,null,null,null,null,null,null,null,null,null,null,null,null,null,null,null,null,null,110503,"o.s.del personal de la industria lechera"]
[null,null,null,null,null,null,null,null,null,null,null,null,null,null,null,null,null,null,null,null,null,null,null,null,null,null,null,null,null,null,null,110602,"o.s.de locutores"]
[null,null,null,null,null,null,null,null,null,null,null,null,null,null,null,null,null,null,null,null,null,null,null,null,null,null,null,null,null,null,null,110701,"o.s.de la federacion argentina de trabajadores de luz y fuerza"]
[null,null,null,null,null,null,null,null,null,null,null,null,null,null,null,null,null,null,null,null,null,null,null,null,null,null,null,null,null,null,null,110800,"o.s.de los trabajadores de las empresas de electricidad"]
[null,null,null,null,null,null,null,null,null,null,null,null,null,null,null,null,null,null,null,null,null,null,null,null,null,null,null,null,null,null,null,110909,"o.s.del personal de luz y fuerza de cordoba"]
[null,null,null,null,null,null,null,null,null,null,null,null,null,null,null,null,null,null,null,null,null,null,null,null,null,null,null,null,null,null,null,111001,"o.s.del personal de la industria maderera"]
[null,null,null,null,null,null,null,null,null,null,null,null,null,null,null,null,null,null,null,null,null,null,null,null,null,null,null,null,null,null,null,111209,"o.s.del personal de maestranza"]
[null,null,null,null,null,null,null,null,null,null,null,null,null,null,null,null,null,null,null,null,null,null,null,null,null,null,null,null,null,null,null,111308,"o.s.de maquinistas de teatro y television"]
[null,null,null,null,null,null,null,null,null,null,null,null,null,null,null,null,null,null,null,null,null,null,null,null,null,null,null,null,null,null,null,111407,"o.s.de capitanes de ultramar y oficiales de la marina mercante"]
[null,null,null,null,null,null,null,null,null,null,null,null,null,null,null,null,null,null,null,null,null,null,null,null,null,null,null,null,null,null,null,111506,"o.s.de capitanes baqueanos fluviales de la marina mercante"]
[null,null,null,null,null,null,null,null,null,null,null,null,null,null,null,null,null,null,null,null,null,null,null,null,null,null,null,null,null,null,null,111605,"o.s.de empleados de la marina mercante"]
[null,null,null,null,null,null,null,null,null,null,null,null,null,null,null,null,null,null,null,null,null,null,null,null,null,null,null,null,null,null,null,111704,"o.s.de encargados apuntadores maritimos"]
[null,null,null,null,null,null,null,null,null,null,null,null,null,null,null,null,null,null,null,null,null,null,null,null,null,null,null,null,null,null,null,111803,"o.s.del personal maritimo"]
[null,null,null,null,null,null,null,null,null,null,null,null,null,null,null,null,null,null,null,null,null,null,null,null,null,null,null,null,null,null,null,111902,"o.s.del sindicato de mecanicos y afines del transporte automotor"]
[null,null,null,null,null,null,null,null,null,null,null,null,null,null,null,null,null,null,null,null,null,null,null,null,null,null,null,null,null,null,null,112004,"o.s.del personal superior de mercedes benz argentina"]
[null,null,null,null,null,null,null,null,null,null,null,null,null,null,null,null,null,null,null,null,null,null,null,null,null,null,null,null,null,null,null,112103,"o.s. de la union obrera metalurgico de la republica argentina"]
[null,null,null,null,null,null,null,null,null,null,null,null,null,null,null,null,null,null,null,null,null,null,null,null,null,null,null,null,null,null,null,112202,"o.s.de los supervisores de la industria metalmecanica de la republica argentina"]
[null,null,null,null,null,null,null,null,null,null,null,null,null,null,null,null,null,null,null,null,null,null,null,null,null,null,null,null,null,null,null,112301,"o.s.del personal de micros y omnibus de mendoza"]
[null,null,null,null,null,null,null,null,null,null,null,null,null,null,null,null,null,null,null,null,null,null,null,null,null,null,null,null,null,null,null,112400,"o.s.de la actividad minera"]
[null,null,null,null,null,null,null,null,null,null,null,null,null,null,null,null,null,null,null,null,null,null,null,null,null,null,null,null,null,null,null,112509,"o.s.modelos argentinos"]
[null,null,null,null,null,null,null,null,null,null,null,null,null,null,null,null,null,null,null,null,null,null,null,null,null,null,null,null,null,null,null,112608,"o.s.del personal de la industria molinera"]
[null,null,null,null,null,null,null,null,null,null,null,null,null,null,null,null,null,null,null,null,null,null,null,null,null,null,null,null,null,null,null,112707,"o.s.del personal mosaista"]
[null,null,null,null,null,null,null,null,null,null,null,null,null,null,null,null,null,null,null,null,null,null,null,null,null,null,null,null,null,null,null,112806,"o.s.de musicos"]
[null,null,null,null,null,null,null,null,null,null,null,null,null,null,null,null,null,null,null,null,null,null,null,null,null,null,null,null,null,null,null,113205,"o.s.de jefes y oficiales navales de radiocomunicaciones"]
[null,null,null,null,null,null,null,null,null,null,null,null,null,null,null,null,null,null,null,null,null,null,null,null,null,null,null,null,null,null,null,113304,"o.s.de jefes y oficiales maquinistas navales"]
[null,null,null,null,null,null,null,null,null,null,null,null,null,null,null,null,null,null,null,null,null,null,null,null,null,null,null,null,null,null,null,113403,"o.s.del personal naval"]
[null,null,null,null,null,null,null,null,null,null,null,null,null,null,null,null,null,null,null,null,null,null,null,null,null,null,null,null,null,null,null,113601,"o.s.del personal de la industria del neumatico"]
[null,null,null,null,null,null,null,null,null,null,null,null,null,null,null,null,null,null,null,null,null,null,null,null,null,null,null,null,null,null,null,113700,"o.s.del personal de la industria naval"]
[null,null,null,null,null,null,null,null,null,null,null,null,null,null,null,null,null,null,null,null,null,null,null,null,null,null,null,null,null,null,null,113809,"o.s.de comisarios navales"]
[null,null,null,null,null,null,null,null,null,null,null,null,null,null,null,null,null,null,null,null,null,null,null,null,null,null,null,null,null,null,null,113908,"o.s.del personal de panaderias"]
[null,null,null,null,null,null,null,null,null,null,null,null,null,null,null,null,null,null,null,null,null,null,null,null,null,null,null,null,null,null,null,114000,"o.s.de panaderos,pasteleros y factureros de entre rios"]
[null,null,null,null,null,null,null,null,null,null,null,null,null,null,null,null,null,null,null,null,null,null,null,null,null,null,null,null,null,null,null,114109,"o.s.del personal del papel,carton y quimicos"]
[null,null,null,null,null,null,null,null,null,null,null,null,null,null,null,null,null,null,null,null,null,null,null,null,null,null,null,null,null,null,null,114208,"o.s.de la industria de pastas alimenticias"]
[null,null,null,null,null,null,null,null,null,null,null,null,null,null,null,null,null,null,null,null,null,null,null,null,null,null,null,null,null,null,null,114307,"o.s.de pasteleros,confiteros,pizzeros y alfajoreros de la republica argentina"]
[null,null,null,null,null,null,null,null,null,null,null,null,null,null,null,null,null,null,null,null,null,null,null,null,null,null,null,null,null,null,null,114505,"o.s.de patrones de cabotaje de rios y puertos"]
[null,null,null,null,null,null,null,null,null,null,null,null,null,null,null,null,null,null,null,null,null,null,null,null,null,null,null,null,null,null,null,114703,"o.s.del personal de peluquerias,estetica y afines"]
[null,null,null,null,null,null,null,null,null,null,null,null,null,null,null,null,null,null,null,null,null,null,null,null,null,null,null,null,null,null,null,114901,"o.s.de oficiales peluqueros y peinadores de rosario"]
[null,null,null,null,null,null,null,null,null,null,null,null,null,null,null,null,null,null,null,null,null,null,null,null,null,null,null,null,null,null,null,115003,"o.s.del personal de la actividad perfumista"]
[null,null,null,null,null,null,null,null,null,null,null,null,null,null,null,null,null,null,null,null,null,null,null,null,null,null,null,null,null,null,null,115102,"o.s.de trabadores de prensa de buenos aires"]
[null,null,null,null,null,null,null,null,null,null,null,null,null,null,null,null,null,null,null,null,null,null,null,null,null,null,null,null,null,null,null,115201,"o.s.del personal de la industria del pescado de mar del plata"]
[null,null,null,null,null,null,null,null,null,null,null,null,null,null,null,null,null,null,null,null,null,null,null,null,null,null,null,null,null,null,null,115300,"o.s.petroleros"]
[null,null,null,null,null,null,null,null,null,null,null,null,null,null,null,null,null,null,null,null,null,null,null,null,null,null,null,null,null,null,null,115409,"o.s.del petroleo y gas privado"]
[null,null,null,null,null,null,null,null,null,null,null,null,null,null,null,null,null,null,null,null,null,null,null,null,null,null,null,null,null,null,null,115508,"o.s.de petroleros de cordoba"]
[null,null,null,null,null,null,null,null,null,null,null,null,null,null,null,null,null,null,null,null,null,null,null,null,null,null,null,null,null,null,null,115607,"o.s.del personal de la industria petroquimica"]
[null,null,null,null,null,null,null,null,null,null,null,null,null,null,null,null,null,null,null,null,null,null,null,null,null,null,null,null,null,null,null,115706,"o.s.de pilotos de lineas aereas comerciales y regulares"]
[null,null,null,null,null,null,null,null,null,null,null,null,null,null,null,null,null,null,null,null,null,null,null,null,null,null,null,null,null,null,null,115805,"o.s.del personal de fabricas de pintura"]
[null,null,null,null,null,null,null,null,null,null,null,null,null,null,null,null,null,null,null,null,null,null,null,null,null,null,null,null,null,null,null,116006,"o.s.del personal de la industria del plastico"]
[null,null,null,null,null,null,null,null,null,null,null,null,null,null,null,null,null,null,null,null,null,null,null,null,null,null,null,null,null,null,null,116105,"o.s.de capataces y estibadores portuarios"]
[null,null,null,null,null,null,null,null,null,null,null,null,null,null,null,null,null,null,null,null,null,null,null,null,null,null,null,null,null,null,null,116204,"o.s.de portuarios argentinos"]
[null,null,null,null,null,null,null,null,null,null,null,null,null,null,null,null,null,null,null,null,null,null,null,null,null,null,null,null,null,null,null,116709,"o.s.portuarios de puerto san martin y bella vista"]
[null,null,null,null,null,null,null,null,null,null,null,null,null,null,null,null,null,null,null,null,null,null,null,null,null,null,null,null,null,null,null,117207,"o.s.del personal de prensa de la republica argentina"]
[null,null,null,null,null,null,null,null,null,null,null,null,null,null,null,null,null,null,null,null,null,null,null,null,null,null,null,null,null,null,null,117405,"o.s.del personal de prensa de bahia blanca"]
[null,null,null,null,null,null,null,null,null,null,null,null,null,null,null,null,null,null,null,null,null,null,null,null,null,null,null,null,null,null,null,117603,"o.s.del personal de prensa de la provincia de chaco"]
[null,null,null,null,null,null,null,null,null,null,null,null,null,null,null,null,null,null,null,null,null,null,null,null,null,null,null,null,null,null,null,117702,"o.s.del personal de prensa de mar del plata"]
[null,null,null,null,null,null,null,null,null,null,null,null,null,null,null,null,null,null,null,null,null,null,null,null,null,null,null,null,null,null,null,117801,"o.s.del personal de prensa de mendoza"]
[null,null,null,null,null,null,null,null,null,null,null,null,null,null,null,null,null,null,null,null,null,null,null,null,null,null,null,null,null,null,null,118002,"o.s.de empleados de prensa de cordoba"]
[null,null,null,null,null,null,null,null,null,null,null,null,null,null,null,null,null,null,null,null,null,null,null,null,null,null,null,null,null,null,null,118200,"o.s.de agentes de propaganda medica de la republica argentina"]
[null,null,null,null,null,null,null,null,null,null,null,null,null,null,null,null,null,null,null,null,null,null,null,null,null,null,null,null,null,null,null,118309,"o.s.de agentes de propaganda medica de cordoba"]
[null,null,null,null,null,null,null,null,null,null,null,null,null,null,null,null,null,null,null,null,null,null,null,null,null,null,null,null,null,null,null,118408,"o.s.de agentes de propaganda medica de entre rios"]
[null,null,null,null,null,null,null,null,null,null,null,null,null,null,null,null,null,null,null,null,null,null,null,null,null,null,null,null,null,null,null,118507,"o.s.de agentes de propaganda medica de rosario"]
[null,null,null,null,null,null,null,null,null,null,null,null,null,null,null,null,null,null,null,null,null,null,null,null,null,null,null,null,null,null,null,118606,"o.s.del personal de la publicidad"]
[null,null,null,null,null,null,null,null,null,null,null,null,null,null,null,null,null,null,null,null,null,null,null,null,null,null,null,null,null,null,null,118705,"o.s.del personal de industrias quimicas y petroquimicas"]
[null,null,null,null,null,null,null,null,null,null,null,null,null,null,null,null,null,null,null,null,null,null,null,null,null,null,null,null,null,null,null,118804,"o.s.de recibidores de granos y anexos"]
[null,null,null,null,null,null,null,null,null,null,null,null,null,null,null,null,null,null,null,null,null,null,null,null,null,null,null,null,null,null,null,118903,"o.s.del personal de recoleccion y barrido de rosario"]
[null,null,null,null,null,null,null,null,null,null,null,null,null,null,null,null,null,null,null,null,null,null,null,null,null,null,null,null,null,null,null,119005,"o.s.del personal de refinerias de maiz"]
[null,null,null,null,null,null,null,null,null,null,null,null,null,null,null,null,null,null,null,null,null,null,null,null,null,null,null,null,null,null,null,119203,"o.s.de relojeros y joyeros"]
[null,null,null,null,null,null,null,null,null,null,null,null,null,null,null,null,null,null,null,null,null,null,null,null,null,null,null,null,null,null,null,119302,"o.s.del personal rural y estibadores de la republica  argentina"]
[null,null,null,null,null,null,null,null,null,null,null,null,null,null,null,null,null,null,null,null,null,null,null,null,null,null,null,null,null,null,null,119500,"o.s.del personal de la sanidad argentina"]
[null,null,null,null,null,null,null,null,null,null,null,null,null,null,null,null,null,null,null,null,null,null,null,null,null,null,null,null,null,null,null,119609,"o.s.del personal de instalaciones sanitarias"]
[null,null,null,null,null,null,null,null,null,null,null,null,null,null,null,null,null,null,null,null,null,null,null,null,null,null,null,null,null,null,null,119708,"o.s.del personal de seguridad comercial,industrial e investigaciones privadas"]
[null,null,null,null,null,null,null,null,null,null,null,null,null,null,null,null,null,null,null,null,null,null,null,null,null,null,null,null,null,null,null,119906,"o.s.de serenos de buques"]
[null,null,null,null,null,null,null,null,null,null,null,null,null,null,null,null,null,null,null,null,null,null,null,null,null,null,null,null,null,null,null,120306,"o.s.del personal de supervision de la empresa subterraneos de buenos aires"]
[null,null,null,null,null,null,null,null,null,null,null,null,null,null,null,null,null,null,null,null,null,null,null,null,null,null,null,null,null,null,null,120405,"o.s.del personal de direccion de la empresa subterraneos buenos aires"]
[null,null,null,null,null,null,null,null,null,null,null,null,null,null,null,null,null,null,null,null,null,null,null,null,null,null,null,null,null,null,null,120504,"o.s.del personal de la industria del tabaco"]
[null,null,null,null,null,null,null,null,null,null,null,null,null,null,null,null,null,null,null,null,null,null,null,null,null,null,null,null,null,null,null,120603,"o.s.de empleados del tabaco"]
[null,null,null,null,null,null,null,null,null,null,null,null,null,null,null,null,null,null,null,null,null,null,null,null,null,null,null,null,null,null,null,120702,"o.s. del personal de las telecomunicaciones de la republica argentina"]
[null,null,null,null,null,null,null,null,null,null,null,null,null,null,null,null,null,null,null,null,null,null,null,null,null,null,null,null,null,null,null,120801,"o.s.de trabajadores de las comunicaciones (ostrac)"]
[null,null,null,null,null,null,null,null,null,null,null,null,null,null,null,null,null,null,null,null,null,null,null,null,null,null,null,null,null,null,null,120900,"o.s.del personal de television"]
[null,null,null,null,null,null,null,null,null,null,null,null,null,null,null,null,null,null,null,null,null,null,null,null,null,null,null,null,null,null,null,121002,"o.s.del personal de la industria textil"]
[null,null,null,null,null,null,null,null,null,null,null,null,null,null,null,null,null,null,null,null,null,null,null,null,null,null,null,null,null,null,null,121101,"o.s.de empleados textiles y afines"]
[null,null,null,null,null,null,null,null,null,null,null,null,null,null,null,null,null,null,null,null,null,null,null,null,null,null,null,null,null,null,null,121309,"o.s.del personal de la industria del tractor"]
[null,null,null,null,null,null,null,null,null,null,null,null,null,null,null,null,null,null,null,null,null,null,null,null,null,null,null,null,null,null,null,121507,"o.s.de la industria del transporte automotor de cordoba"]
[null,null,null,null,null,null,null,null,null,null,null,null,null,null,null,null,null,null,null,null,null,null,null,null,null,null,null,null,null,null,null,121606,"o.s.de conductores de transporte colectivo de pasajeros"]
[null,null,null,null,null,null,null,null,null,null,null,null,null,null,null,null,null,null,null,null,null,null,null,null,null,null,null,null,null,null,null,121705,"o.s.del personal de la actividad del turf"]
[null,null,null,null,null,null,null,null,null,null,null,null,null,null,null,null,null,null,null,null,null,null,null,null,null,null,null,null,null,null,null,121804,"o.s.conductores de taxis de cordoba"]
[null,null,null,null,null,null,null,null,null,null,null,null,null,null,null,null,null,null,null,null,null,null,null,null,null,null,null,null,null,null,null,121903,"o.s.de vareadores"]
[null,null,null,null,null,null,null,null,null,null,null,null,null,null,null,null,null,null,null,null,null,null,null,null,null,null,null,null,null,null,null,122005,"o.s.para el personal de la industria del vestido y afines"]
[null,null,null,null,null,null,null,null,null,null,null,null,null,null,null,null,null,null,null,null,null,null,null,null,null,null,null,null,null,null,null,122104,"o.s.de viajantes vendedores de la republica argentina"]
[null,null,null,null,null,null,null,null,null,null,null,null,null,null,null,null,null,null,null,null,null,null,null,null,null,null,null,null,null,null,null,122302,"o.s.del personal de la actividad vial"]
[null,null,null,null,null,null,null,null,null,null,null,null,null,null,null,null,null,null,null,null,null,null,null,null,null,null,null,null,null,null,null,122401,"o.s.de empleados de la industria del vidrio"]
[null,null,null,null,null,null,null,null,null,null,null,null,null,null,null,null,null,null,null,null,null,null,null,null,null,null,null,null,null,null,null,122500,"o.s.del personal de la industria del vidrio"]
[null,null,null,null,null,null,null,null,null,null,null,null,null,null,null,null,null,null,null,null,null,null,null,null,null,null,null,null,null,null,null,122609,"o.s.del personal de la actividad vitivinicola"]
[null,null,null,null,null,null,null,null,null,null,null,null,null,null,null,null,null,null,null,null,null,null,null,null,null,null,null,null,null,null,null,122807,"o.s.del personal de vigilancia y seguridad comercial,industrial e investigaciones privadas de cordoba"]
[null,null,null,null,null,null,null,null,null,null,null,null,null,null,null,null,null,null,null,null,null,null,null,null,null,null,null,null,null,null,null,122906,"o.s.del personal de estaciones de servicio,garages,playas de estacionamiento y lavaderos automaticos de santa fe"]
[null,null,null,null,null,null,null,null,null,null,null,null,null,null,null,null,null,null,null,null,null,null,null,null,null,null,null,null,null,null,null,123008,"o.s.para el personal de estaciones de servicio,garages,playas de estacionamiento,lavaderos automaticos y gomerias de la republica argentina"]
[null,null,null,null,null,null,null,null,null,null,null,null,null,null,null,null,null,null,null,null,null,null,null,null,null,null,null,null,null,null,null,123107,"o.s.de talleristas a domicilio"]
[null,null,null,null,null,null,null,null,null,null,null,null,null,null,null,null,null,null,null,null,null,null,null,null,null,null,null,null,null,null,null,123305,"o.s.del personal de sociedades de autores y afines"]
[null,null,null,null,null,null,null,null,null,null,null,null,null,null,null,null,null,null,null,null,null,null,null,null,null,null,null,null,null,null,null,123404,"o.s.del personal de prensa de rosario"]
[null,null,null,null,null,null,null,null,null,null,null,null,null,null,null,null,null,null,null,null,null,null,null,null,null,null,null,null,null,null,null,123503,"o.s.del personal de prensa de tucuman"]
[null,null,null,null,null,null,null,null,null,null,null,null,null,null,null,null,null,null,null,null,null,null,null,null,null,null,null,null,null,null,null,123602,"o.s.de trabajadores de perkins argentina s.a.i.c."]
[null,null,null,null,null,null,null,null,null,null,null,null,null,null,null,null,null,null,null,null,null,null,null,null,null,null,null,null,null,null,null,123701,"o.s.de peones de taxis de la capital federal"]
[null,null,null,null,null,null,null,null,null,null,null,null,null,null,null,null,null,null,null,null,null,null,null,null,null,null,null,null,null,null,null,123800,"o.s.del personal guardavidas y afines de la republica argentina"]
[null,null,null,null,null,null,null,null,null,null,null,null,null,null,null,null,null,null,null,null,null,null,null,null,null,null,null,null,null,null,null,123909,"o.s.de vendedores ambulantes de la republica argentina"]
[null,null,null,null,null,null,null,null,null,null,null,null,null,null,null,null,null,null,null,null,null,null,null,null,null,null,null,null,null,null,null,124001,"o.s.de boxeadores agremiados de la republica argentina"]
[null,null,null,null,null,null,null,null,null,null,null,null,null,null,null,null,null,null,null,null,null,null,null,null,null,null,null,null,null,null,null,124506,"o.s.de los trabajadores de la industria del gas"]
[null,null,null,null,null,null,null,null,null,null,null,null,null,null,null,null,null,null,null,null,null,null,null,null,null,null,null,null,null,null,null,124902,"o.s.de la federacion nacional de sindicatos de conductores de taxis de la republica argentina"]
[null,null,null,null,null,null,null,null,null,null,null,null,null,null,null,null,null,null,null,null,null,null,null,null,null,null,null,null,null,null,null,125004,"o.s.yacimientos carboniferos"]
[null,null,null,null,null,null,null,null,null,null,null,null,null,null,null,null,null,null,null,null,null,null,null,null,null,null,null,null,null,null,null,125103,"o.s.de los profesionales universitarios del agua y energia electrica"]
[null,null,null,null,null,null,null,null,null,null,null,null,null,null,null,null,null,null,null,null,null,null,null,null,null,null,null,null,null,null,null,125301,"o.s.federal nacional de obras sanitarias"]
[null,null,null,null,null,null,null,null,null,null,null,null,null,null,null,null,null,null,null,null,null,null,null,null,null,null,null,null,null,null,null,125509,"o.s.de la federacion argentina del trabajador de las universidades nacionales"]
[null,null,null,null,null,null,null,null,null,null,null,null,null,null,null,null,null,null,null,null,null,null,null,null,null,null,null,null,null,null,null,125707,"o.s.del personal civil de la nacion"]
[null,null,null,null,null,null,null,null,null,null,null,null,null,null,null,null,null,null,null,null,null,null,null,null,null,null,null,null,null,null,null,125905,"o.s.arbitros deportivos de la republica argentina"]
[null,null,null,null,null,null,null,null,null,null,null,null,null,null,null,null,null,null,null,null,null,null,null,null,null,null,null,null,null,null,null,126007,"o.s.federacion gremial industria de la carne y sus derivados"]
[null,null,null,null,null,null,null,null,null,null,null,null,null,null,null,null,null,null,null,null,null,null,null,null,null,null,null,null,null,null,null,126106,"o.s.de los trabajadores de la educacion privada"]
[null,null,null,null,null,null,null,null,null,null,null,null,null,null,null,null,null,null,null,null,null,null,null,null,null,null,null,null,null,null,null,126205,"o.s.de los empleados de comercio y actividades civiles"]
[null,null,null,null,null,null,null,null,null,null,null,null,null,null,null,null,null,null,null,null,null,null,null,null,null,null,null,null,null,null,null,126304,"o.s.bancaria argentina"]
[null,null,null,null,null,null,null,null,null,null,null,null,null,null,null,null,null,null,null,null,null,null,null,null,null,null,null,null,null,null,null,126502,"os confederacion de obreros y empleados municipales argentina"]
[null,null,null,null,null,null,null,null,null,null,null,null,null,null,null,null,null,null,null,null,null,null,null,null,null,null,null,null,null,null,null,126601,"o.s.personal de industrias quimicas y petroquimicas zarate campana"]
[null,null,null,null,null,null,null,null,null,null,null,null,null,null,null,null,null,null,null,null,null,null,null,null,null,null,null,null,null,null,null,126700,"os del personal de la actividad azucarera tucumana"]
[null,null,null,null,null,null,null,null,null,null,null,null,null,null,null,null,null,null,null,null,null,null,null,null,null,null,null,null,null,null,null,126809,"os de conductores de remises y autos al instante y afines"]
[null,null,null,null,null,null,null,null,null,null,null,null,null,null,null,null,null,null,null,null,null,null,null,null,null,null,null,null,null,null,null,126908,"obra social de los medicos de la ciudad de buenos aires"]
[null,null,null,null,null,null,null,null,null,null,null,null,null,null,null,null,null,null,null,null,null,null,null,null,null,null,null,null,null,null,null,127000,"o.s.de trabajadores de estaciones de servicio (ostes)"]
[null,null,null,null,null,null,null,null,null,null,null,null,null,null,null,null,null,null,null,null,null,null,null,null,null,null,null,null,null,null,null,127109,"os del personal de las telecomunicaciones sindicato bs as (ospetelco)"]
[null,null,null,null,null,null,null,null,null,null,null,null,null,null,null,null,null,null,null,null,null,null,null,null,null,null,null,null,null,null,null,127208,"os de mandos medios de las telecomunicaciones de la ra y el mercosur - osmmedt"]
[null,null,null,null,null,null,null,null,null,null,null,null,null,null,null,null,null,null,null,null,null,null,null,null,null,null,null,null,null,null,null,127307,"os de trabajadores viales y afines de la republica argentina"]
[null,null,null,null,null,null,null,null,null,null,null,null,null,null,null,null,null,null,null,null,null,null,null,null,null,null,null,null,null,null,null,127406,"os de obreros y empleados tintoreros, sombreros y lavaderos de la r.a."]
[null,null,null,null,null,null,null,null,null,null,null,null,null,null,null,null,null,null,null,null,null,null,null,null,null,null,null,null,null,null,null,127505,"os de empleados de farmacia"]
[null,null,null,null,null,null,null,null,null,null,null,null,null,null,null,null,null,null,null,null,null,null,null,null,null,null,null,null,null,null,null,127703,"os personal estaciones de servicio, garages, playas y lavaderos de la pcia. chaco"]
[null,null,null,null,null,null,null,null,null,null,null,null,null,null,null,null,null,null,null,null,null,null,null,null,null,null,null,null,null,null,null,200400,"o.s.de la empresa nacional de correos y telegrafos s.a.y de las comunicaciones de la republica argentina"]
[null,null,null,null,null,null,null,null,null,null,null,null,null,null,null,null,null,null,null,null,null,null,null,null,null,null,null,null,null,null,null,201502,"o.s.direccion nacional de vialidad"]
[null,null,null,null,null,null,null,null,null,null,null,null,null,null,null,null,null,null,null,null,null,null,null,null,null,null,null,null,null,null,null,300407,"o.s.de la empresa privada celulosa argentina s.a."]
[null,null,null,null,null,null,null,null,null,null,null,null,null,null,null,null,null,null,null,null,null,null,null,null,null,null,null,null,null,null,null,300704,"o.s.ceras johnson"]
[null,null,null,null,null,null,null,null,null,null,null,null,null,null,null,null,null,null,null,null,null,null,null,null,null,null,null,null,null,null,null,301509,"o.s.mutualidad empleados firestone"]
[null,null,null,null,null,null,null,null,null,null,null,null,null,null,null,null,null,null,null,null,null,null,null,null,null,null,null,null,null,null,null,301707,"o.s.de alliet domeco argentina. s.a. (ex-hiram walker s.a.)"]
[null,null,null,null,null,null,null,null,null,null,null,null,null,null,null,null,null,null,null,null,null,null,null,null,null,null,null,null,null,null,null,302106,"o.s.para directivos,tecnicos y empleados de john deere argentina"]
[null,null,null,null,null,null,null,null,null,null,null,null,null,null,null,null,null,null,null,null,null,null,null,null,null,null,null,null,null,null,null,302601,"o.s.cooperativa de asistencia mutua y turismo del personal de las sociedades pirelli limitada"]
[null,null,null,null,null,null,null,null,null,null,null,null,null,null,null,null,null,null,null,null,null,null,null,null,null,null,null,null,null,null,null,302809,"o.s.refinerias de maiz s.a.i.c.f."]
[null,null,null,null,null,null,null,null,null,null,null,null,null,null,null,null,null,null,null,null,null,null,null,null,null,null,null,null,null,null,null,303109,"o.s.superco"]
[null,null,null,null,null,null,null,null,null,null,null,null,null,null,null,null,null,null,null,null,null,null,null,null,null,null,null,null,null,null,null,303307,"o.s.cabot argentina"]
[null,null,null,null,null,null,null,null,null,null,null,null,null,null,null,null,null,null,null,null,null,null,null,null,null,null,null,null,null,null,null,303406,"o.s.del personal de shell-capsa"]
[null,null,null,null,null,null,null,null,null,null,null,null,null,null,null,null,null,null,null,null,null,null,null,null,null,null,null,null,null,null,null,303703,"o.s.del personal de pbbpolisur de bahia blanca"]
[null,null,null,null,null,null,null,null,null,null,null,null,null,null,null,null,null,null,null,null,null,null,null,null,null,null,null,null,null,null,null,303901,"o.s.ford argentina s.a."]
[null,null,null,null,null,null,null,null,null,null,null,null,null,null,null,null,null,null,null,null,null,null,null,null,null,null,null,null,null,null,null,304003,"o.s.volkswagen argentina s.a."]
[null,null,null,null,null,null,null,null,null,null,null,null,null,null,null,null,null,null,null,null,null,null,null,null,null,null,null,null,null,null,null,400107,"o.s.del personal de direccion de las empresas de la alimentacion y demas actividades empresarias"]
[null,null,null,null,null,null,null,null,null,null,null,null,null,null,null,null,null,null,null,null,null,null,null,null,null,null,null,null,null,null,null,400206,"o.s.del personal de direccion de la industria automotriz argentina"]
[null,null,null,null,null,null,null,null,null,null,null,null,null,null,null,null,null,null,null,null,null,null,null,null,null,null,null,null,null,null,null,400305,"o.s.cooperativa limitada de asistencia medica,farmaceutica,credito y consumo del personal superior de la industria del caucho y otras actividades industriales"]
[null,null,null,null,null,null,null,null,null,null,null,null,null,null,null,null,null,null,null,null,null,null,null,null,null,null,null,null,null,null,null,400404,"o.s.del personal de direccion de la industria cervecera y maltera"]
[null,null,null,null,null,null,null,null,null,null,null,null,null,null,null,null,null,null,null,null,null,null,null,null,null,null,null,null,null,null,null,400503,"o.s.del personal de direccion y jerarquico de la industria del cigarrillo"]
[null,null,null,null,null,null,null,null,null,null,null,null,null,null,null,null,null,null,null,null,null,null,null,null,null,null,null,null,null,null,null,400602,"o.s.del personal directivo de la industria de la construccion"]
[null,null,null,null,null,null,null,null,null,null,null,null,null,null,null,null,null,null,null,null,null,null,null,null,null,null,null,null,null,null,null,400701,"o.s.camara de la industria curtidora argentina"]
[null,null,null,null,null,null,null,null,null,null,null,null,null,null,null,null,null,null,null,null,null,null,null,null,null,null,null,null,null,null,null,400800,"organizacion de servicios directos empresarios"]
[null,null,null,null,null,null,null,null,null,null,null,null,null,null,null,null,null,null,null,null,null,null,null,null,null,null,null,null,null,null,null,400909,"o.s.accion social de empresarios"]
[null,null,null,null,null,null,null,null,null,null,null,null,null,null,null,null,null,null,null,null,null,null,null,null,null,null,null,null,null,null,null,401001,"o.s.del personal de direccion de las empresas que actuan en frutos del pais"]
[null,null,null,null,null,null,null,null,null,null,null,null,null,null,null,null,null,null,null,null,null,null,null,null,null,null,null,null,null,null,null,401100,"o.s.del personal de direccion alfredo fortabat"]
[null,null,null,null,null,null,null,null,null,null,null,null,null,null,null,null,null,null,null,null,null,null,null,null,null,null,null,null,null,null,null,401209,"o.s.del personal de direccion de la industria metalurgica y demas act. empresarias"]
[null,null,null,null,null,null,null,null,null,null,null,null,null,null,null,null,null,null,null,null,null,null,null,null,null,null,null,null,null,null,null,401308,"o.s.para el personal de direccion de la industria maderera"]
[null,null,null,null,null,null,null,null,null,null,null,null,null,null,null,null,null,null,null,null,null,null,null,null,null,null,null,null,null,null,null,401506,"asociacion de prestaciones sociales para empresarios y personal de direccion de empresas de la produccion,industria,comercio y servicios"]
[null,null,null,null,null,null,null,null,null,null,null,null,null,null,null,null,null,null,null,null,null,null,null,null,null,null,null,null,null,null,null,401605,"o.s.del personal de direccion de la industria privada del petroleo"]
[null,null,null,null,null,null,null,null,null,null,null,null,null,null,null,null,null,null,null,null,null,null,null,null,null,null,null,null,null,null,null,401704,"o.s.empresarios,profesionales y monotributistas"]
[null,null,null,null,null,null,null,null,null,null,null,null,null,null,null,null,null,null,null,null,null,null,null,null,null,null,null,null,null,null,null,401803,"o.s.asociacion mutual del personal de philips argentina (ampar)"]
[null,null,null,null,null,null,null,null,null,null,null,null,null,null,null,null,null,null,null,null,null,null,null,null,null,null,null,null,null,null,null,401902,"o.s.del personal de direccion de perfumerias e.w.hope"]
[null,null,null,null,null,null,null,null,null,null,null,null,null,null,null,null,null,null,null,null,null,null,null,null,null,null,null,null,null,null,null,402004,"o.s.del personal de direccion de la sanidad luis pasteur"]
[null,null,null,null,null,null,null,null,null,null,null,null,null,null,null,null,null,null,null,null,null,null,null,null,null,null,null,null,null,null,null,402103,"o.s.asociacion del personal de direccion de la industria siderurgica"]
[null,null,null,null,null,null,null,null,null,null,null,null,null,null,null,null,null,null,null,null,null,null,null,null,null,null,null,null,null,null,null,402202,"o.s.mutualidad industrial textil argentina"]
[null,null,null,null,null,null,null,null,null,null,null,null,null,null,null,null,null,null,null,null,null,null,null,null,null,null,null,null,null,null,null,402301,"o.s.asociacion del personal superior de la organización techint"]
[null,null,null,null,null,null,null,null,null,null,null,null,null,null,null,null,null,null,null,null,null,null,null,null,null,null,null,null,null,null,null,402400,"o.s.del personal de direccion de la industria vitivinicola y afines"]
[null,null,null,null,null,null,null,null,null,null,null,null,null,null,null,null,null,null,null,null,null,null,null,null,null,null,null,null,null,null,null,402509,"os ypf"]
[null,null,null,null,null,null,null,null,null,null,null,null,null,null,null,null,null,null,null,null,null,null,null,null,null,null,null,null,null,null,null,402608,"os asociacion de servicios sociales para empresarios y personal de direccion de empresas del comercio, servicios, produccion, industria y civil (aspe)"]
[null,null,null,null,null,null,null,null,null,null,null,null,null,null,null,null,null,null,null,null,null,null,null,null,null,null,null,null,null,null,null,402707,"o.s. de direccion osdo"]
[null,null,null,null,null,null,null,null,null,null,null,null,null,null,null,null,null,null,null,null,null,null,null,null,null,null,null,null,null,null,null,402806,"os de direccion de la actividad aerocomercial privada"]
[null,null,null,null,null,null,null,null,null,null,null,null,null,null,null,null,null,null,null,null,null,null,null,null,null,null,null,null,null,null,null,402905,"os de direccion witcel"]
[null,null,null,null,null,null,null,null,null,null,null,null,null,null,null,null,null,null,null,null,null,null,null,null,null,null,null,null,null,null,null,500807,"instituto nacional de servicios sociales para jubilados y pensionados"]
[null,null,null,null,null,null,null,null,null,null,null,null,null,null,null,null,null,null,null,null,null,null,null,null,null,null,null,null,null,null,null,600309,"asociacion de obras sociales de bella vista"]
[null,null,null,null,null,null,null,null,null,null,null,null,null,null,null,null,null,null,null,null,null,null,null,null,null,null,null,null,null,null,null,600408,"asociacion de obras sociales de comodoro rivadavia"]
[null,null,null,null,null,null,null,null,null,null,null,null,null,null,null,null,null,null,null,null,null,null,null,null,null,null,null,null,null,null,null,602305,"asociacion de obras sociales de rosario"]
[null,null,null,null,null,null,null,null,null,null,null,null,null,null,null,null,null,null,null,null,null,null,null,null,null,null,null,null,null,null,null,602701,"asociacion de obras sociales de san juan"]
[null,null,null,null,null,null,null,null,null,null,null,null,null,null,null,null,null,null,null,null,null,null,null,null,null,null,null,null,null,null,null,603100,"asociacion de obras sociales de trelew"]
[null,null,null,null,null,null,null,null,null,null,null,null,null,null,null,null,null,null,null,null,null,null,null,null,null,null,null,null,null,null,null,700108,"o.s.del personal municipal de avellaneda"]
[null,null,null,null,null,null,null,null,null,null,null,null,null,null,null,null,null,null,null,null,null,null,null,null,null,null,null,null,null,null,null,700801,"o.s.del personal municipal de la matanza"]
[null,null,null,null,null,null,null,null,null,null,null,null,null,null,null,null,null,null,null,null,null,null,null,null,null,null,null,null,null,null,null,701002,"o.s.del personal municipal de tres de febrero"]
[null,null,null,null,null,null,null,null,null,null,null,null,null,null,null,null,null,null,null,null,null,null,null,null,null,null,null,null,null,null,null,800105,"o.s.atanor s.a."]
[null,null,null,null,null,null,null,null,null,null,null,null,null,null,null,null,null,null,null,null,null,null,null,null,null,null,null,null,null,null,null,800303,"o.s.papel misionero s.a.i.f.y c."]
[null,null,null,null,null,null,null,null,null,null,null,null,null,null,null,null,null,null,null,null,null,null,null,null,null,null,null,null,null,null,null,800501,"o.s.aceros parana"]
[null,null,null,null,null,null,null,null,null,null,null,null,null,null,null,null,null,null,null,null,null,null,null,null,null,null,null,null,null,null,null,900102,"o.s.del personal de empresas fiat y empresas peugeot citroen arg."]

{"sheet":"Principal","index":1,"n_rows":22,"n_cols":8,"rows_kept":22,"cut":false,"hidden":false,"merged":[[3,1,3,3],[3,5,3,7]]}
[null,"Sistema de Liquidación de Sueldos y Jornales"]
[null,"Cátedra de Gestión Informatizada - Facultad de Cs.Económicas - UNRC"]
[]
[null,"Parámetros Generales",null,null,null,"Personal a Liquidar"]
[null,null,null,null,null,"Apellido y Nombre",null,"Barrientos Sebastian"]
[null,"Día de Liquidación",null,"2015-08-31",null,"CUIL",null,{"$f":"VLOOKUP(Nombre,Personal,MATCH(F6,Campos_Personal,0),0)","v":20066362311}]
[null,"Días en el Mes",null,{"$f":"DAY(EOMONTH(Dia_liquidacion,0))","v":31},null,"Fecha de Ingreso",null,{"$f":"VLOOKUP(Nombre,Personal,MATCH(F7,Campos_Personal,0),0)","v":"2006-04-01"}]
[null,null,null,null,null,"Categoría",null,{"$f":"VLOOKUP(Nombre,Personal,MATCH(F8,Campos_Personal,0),0)","v":"Administrativo B"}]
[null,"Vacaciones al",null,"2015-12-31",null,"Cargo",null,{"$f":"VLOOKUP(Nombre,Personal,MATCH(F9,Campos_Personal,0),0)","v":"Control Documetación"}]
[null,null,null,null,null,"Sueldo Básico",null,{"$f":"VLOOKUP(Nombre,Personal,MATCH(F10,Campos_Personal,0),0)","v":10105.07}]
[null,null,null,null,null,"Antigüedad"]
[null,null,null,null,null,"Días Trabajados",null,{"$f":"Días_en_el_Mes-Dias_Injustificados","v":31}]
[null,null,null,null,null,"Ausencias Injustificadas"]
[null,"Datos de la Empresa",null,null,null,"Horas Extras 50%"]
[null,"Razón Social",null,"Empresa S.R.L.",null,"Horas Extras 100%"]
[null,"Domicilio",null,"Cuba Nº 1924",null,"CCT",null,{"$f":"VLOOKUP(Nombre,Personal,MATCH(F16,Campos_Personal,0),0)","v":"130/75"}]
[null,"Localidad",null,"(5800)-Río Cuarto",null,"Adherente Obra Social",null,{"$f":"VLOOKUP(Nombre,Personal,MATCH(F17,Campos_Personal,0),0)","v":0}]
[null,"CUIT",null,"30-99999999-5",null,"Días de Vacaciones"]
[null,"Tipo Empleador",null,"Dec 814/01 Art 2 Inc B"]
[null,"Actividad",null,"Actividades No Clasificadas"]
[null,"Zona Sicoss",null,"Cordoba"]
[null,"Zona D 814/01",null,"Resto Cba"]

{"sheet":"Personal","index":2,"n_rows":4,"n_cols":27,"rows_kept":4,"cut":false,"hidden":false,"merged":[]}
["Legajo","Nombre","Nº Docum","CUIL","Domicilio","Numero","Dpto","Piso","C.Postal","Localidad","Fecha Nacim","E.Civil","Adherente Obra Social","Categoría","Cargo","Lugar Pago","Sueldo Básico","Régimen Jubilatorio","Obra Social","Situación","Condición","Modalidad","CCT","Fecha de Ingreso","Mejor Remunerativo Anual","Remunerativo para SAC","Remunerativo para Vac"]
["0001","Constanso Hector",6650949,20066509495,"Posadas",342,null,null,5800,"RIO CUARTO","1978-02-05","C",1,"Administrativo A","Planilleros","Río Cuarto",{"$f":"VLOOKUP(N2,Basicos,2,0)","v":10048.76},"SIPA","o.s.de los empleados de comercio y actividades civiles","Activo","Servicios Comunes. Mayor de 18 años","Por tiempo indeterminado – tiempo determinado","130/75","2001-09-01"]
["0002","Barrientos Sebastian",6636231,20066362311,"Bolivia",455,null,null,5800,"RIO CUARTO","1975-04-04","C",null,"Administrativo B","Control Documetación","Río Cuarto",{"$f":"VLOOKUP(N3,Basicos,2,0)","v":10105.07},"SIPA","o.s.de los empleados de comercio y actividades civiles","Activo","Servicios Comunes. Mayor de 18 años","Por tiempo indeterminado – tiempo determinado","130/75","2006-04-01"]
["0003","Ventura Lidia",16118724,27161187246,"Maipú",2345,null,null,5800,"RIO CUARTO","1963-11-25","S",null,"Administrativo A","Recepcionista","Río Cuarto",{"$f":"VLOOKUP(N4,Basicos,2,0)","v":10048.76},"SIPA","o.s.de los empleados de comercio y actividades civiles","Activo","Servicios Comunes. Mayor de 18 años","Por tiempo indeterminado – tiempo determinado","130/75","2000-03-01"]

{"sheet":"Normal","index":3,"n_rows":30,"n_cols":6,"rows_kept":30,"cut":false,"hidden":false,"merged":[[0,0,0,5],[1,0,1,5]]}
["Liquidación Normal"]
["Conceptos Liquidables - Fórmulas para el cálculo"]
["Código","Nombre","Fórmula","Tipo","Liquida","Valor"]
[1,"Sueldo Básico",{"$f":"ROUND(Sueldo_Basico/Días_en_el_Mes*Días_Trabajados,2)","v":10105.07},"Remunerativo","Sí",{"$f":"IF(E4=\"Sí\",C4,0)","v":10105.07}]
[2,"Antigüedad",null,null,null,{"$f":"IF(E5=\"Sí\",C5,0)","v":0}]
[3,"Presentismo",null,null,null,0]
[4,"Acuerdo Abril 2015",null,null,null,0]
[6,"Horas Extras 50%",null,null,null,0]
[7,"Horas Extras 100%",null,null,null,0]
[8,"Movilidad",null,null,null,0]
[100,"Jubilación",null,null,null,0]
[101,"Ley 19032",null,null,null,0]
[102,"Obra Social",null,null,null,0]
[103,"Fondo Solidario Redistrib",null,null,null,0]
[104,"Adherente Obra Social",null,null,null,0]
[105,"Art 100 - Fondo Asist",null,null,null,0]
[106,"Art 100 - FAECyS",null,null,null,0]
[111,"Seguro Vida Mercantil",null,null,null,0]
[112,"Retención Judicial (Embargo)",null,null,null,0]
[300,"SIJP",null,null,null,0]
[301,"INSSJP",null,null,null,0]
[302,"FNE",null,null,null,0]
[303,"Asignacion Familiar",null,null,null,0]
[304,"Contribucion Obra Social",null,null,null,0]
[305,"Contribucion Fondo Sol Red",null,null,null,0]
[306,"ART",null,null,null,0]
[307,"Seguro de Vida Dec 1567/74",null,null,null,0]
[308,"Seguro Vida Mercantil",null,null,null,0]
[309,"Contribucion INACAP",null,null,null,0]
[310,"Seguro Retiro Complement",null,null,null,0]

{"sheet":"Recibo","index":4,"n_rows":42,"n_cols":10,"rows_kept":42,"cut":false,"hidden":false,"merged":[[1,1,1,2],[2,1,2,2],[1,6,1,7],[2,6,2,7]]}
[]
[null,{"$f":"\"Empresa: \" & Principal!D15","v":"Empresa: Empresa S.R.L."},null,{"$f":"\"C.U.I.T.: \" & Principal!D18","v":"C.U.I.T.: 30-99999999-5"},null,null,{"$f":"B2","v":"Empresa: Empresa S.R.L."},null,{"$f":"D2","v":"C.U.I.T.: 30-99999999-5"}]
[null,{"$f":"\"Domicilio: \" & Principal!D16","v":"Domicilio: Cuba Nº 1924"},null,{"$f":" \"Localidad: \" & Principal!D17","v":"Localidad: (5800)-Río Cuarto"},null,null,{"$f":"B3","v":"Domicilio: Cuba Nº 1924"},null,{"$f":"D3","v":"Localidad: (5800)-Río Cuarto"}]
[null,null,null,null,null,null,{"$f":"IF(B4=\"\",\"\",B4)","v":""},{"$f":"IF(C4=\"\",\"\",C4)","v":""},{"$f":"IF(D4=\"\",\"\",D4)","v":""},{"$f":"IF(E4=\"\",\"\",E4)","v":""}]
[null,"Apellido y Nombre","Fec. Ingreso","C.U.I.L.","Recibo Nº",null,"Apellido y Nombre","Fec. Ingreso","C.U.I.L.","Recibo Nº"]
[null,{"$f":"Nombre","v":"Barrientos Sebastian"},{"$f":"Fecha_Ingreso","v":"2006-04-01"},{"$f":"CUIL","v":20066362311},null,null,"Barrientos Sebastian","2006-04-01",20066362311,""]
[null,"Período de Pago","Categoría","Calificación","Rem. Básica",null,"Período de Pago","Categoría","Calificación","Rem. Básica"]
[null,null,{"$f":"Categoría","v":"Administrativo B"},{"$f":"Calificación","v":"Control Documetación"},{"$f":"Sueldo_Basico","v":10105.07},null,"","Administrativo B","Control Documetación",10105.07]
[null,"Conceptos","Remunerativos","Exentos","Retenciones",null,"Conceptos","Remunerativos","Exentos","Retenciones"]
[null,null,null,null,null,null,{"$f":"IF(B10=\"\",\"\",B10)","v":""},"","",""]
[null,null,null,null,null,null,{"$f":"IF(B11=\"\",\"\",B11)","v":""},{"$f":"IF(C11=\"\",\"\",C11)","v":""},{"$f":"IF(D11=\"\",\"\",D11)","v":""},{"$f":"IF(E11=\"\",\"\",E11)","v":""}]
[null,null,null,null,null,null,"","","",""]
[null,null,null,null,null,null,"","","",""]
[null,null,null,null,null,null,"","","",""]
[null,null,null,null,null,null,"","","",""]
[null,null,null,null,null,null,"","","",""]
[null,null,null,null,null,null,"","","",""]
[null,null,null,null,null,null,"","","",""]
[null,null,null,null,null,null,"","","",""]
[null,null,null,null,null,null,"","","",""]
[null,null,null,null,null,null,"","","",""]
[null,null,null,null,null,null,"","","",""]
[null,null,null,null,null,null,"","","",""]
[null,null,null,null,null,null,"","","",""]
[null,null,null,null,null,null,"","","",""]
[null,null,null,null,null,null,"","","",""]
[null,null,null,null,null,null,"","","",""]
[null,null,null,null,null,null,"","","",""]
[null,null,{"$f":"IFERROR(IF(VLOOKUP($B29,Normal!$B$4:$F$30,3,0)=\"Remunerativo\",VLOOKUP($B29,Normal!$B$4:$F$30,5,0),0),\"\")","v":""},{"$f":"IFERROR(IF(VLOOKUP($B29,Normal!$B$4:$F$30,3,0)=\"Exento\",VLOOKUP($B29,Normal!$B$4:$F$30,5,0),0),\"\")","v":""},{"$f":"IFERROR(IF(VLOOKUP($B29,Normal!$B$4:$F$30,3,0)=\"Retención\",VLOOKUP($B29,Normal!$B$4:$F$30,5,0),0),\"\")","v":""},null,"","","",""]
[null,null,{"$f":"IFERROR(IF(VLOOKUP($B30,Normal!$B$4:$F$30,3,0)=\"Remunerativo\",VLOOKUP($B30,Normal!$B$4:$F$30,5,0),0),\"\")","v":""},{"$f":"IFERROR(IF(VLOOKUP($B30,Normal!$B$4:$F$30,3,0)=\"Exento\",VLOOKUP($B30,Normal!$B$4:$F$30,5,0),0),\"\")","v":""},{"$f":"IFERROR(IF(VLOOKUP($B30,Normal!$B$4:$F$30,3,0)=\"Retención\",VLOOKUP($B30,Normal!$B$4:$F$30,5,0),0),\"\")","v":""},null,"","","",""]
[null,null,{"$f":"IFERROR(IF(VLOOKUP($B31,Normal!$B$4:$F$30,3,0)=\"Remunerativo\",VLOOKUP($B31,Normal!$B$4:$F$30,5,0),0),\"\")","v":""},{"$f":"IFERROR(IF(VLOOKUP($B31,Normal!$B$4:$F$30,3,0)=\"Exento\",VLOOKUP($B31,Normal!$B$4:$F$30,5,0),0),\"\")","v":""},{"$f":"IFERROR(IF(VLOOKUP($B31,Normal!$B$4:$F$30,3,0)=\"Retención\",VLOOKUP($B31,Normal!$B$4:$F$30,5,0),0),\"\")","v":""},null,"","","",""]
[null,null,{"$f":"SUM(C11:C31)","v":0},{"$f":"SUM(D11:D31)","v":0},{"$f":"SUM(E11:E31)","v":0},null,null,{"$f":"IF(C32=\"\",\"\",C32)","v":0},{"$f":"IF(D32=\"\",\"\",D32)","v":0},{"$f":"IF(E32=\"\",\"\",E32)","v":0}]
[null,null,null,"Neto a Cobrar",{"$f":"C32+D32-E32","v":0},null,null,null,{"$f":"D33","v":"Neto a Cobrar"},{"$f":"IF(E33=\"\",\"\",E33)","v":0}]
[]
[null,"Lugar y Fecha de Pago:",null,null,null,null,{"$f":"B35","v":"Lugar y Fecha de Pago:"}]
[]
[null,"Son Pesos:",null,null,null,null,{"$f":"B37","v":"Son Pesos:"}]
[]
[null,null,null,null,"                                   ",null,null,null,null,"                                   "]
[null,"Mes:",null,null,null,null,{"$f":"B40","v":"Mes:"}]
[null,"Banco:",null,null,null,null,{"$f":"B41","v":"Banco:"}]
[null,"Fecha depósito:",null,null,null,null,"Fecha depósito:"]